[Event "RLP-ch Rapid 2024"]
[Site "Landau"]
[Date "2024.05.04"]
[Round "4.4"]
[White "Baerwinkel, Tobias"]
[Black "Lebzak, Jaroslav"]
[Result "1/2-1/2"]
[ECO "E04"]
[WhiteElo "2289"]
[BlackElo "2141"]
[Annotator "TA"]
[PlyCount "128"]
[EventDate "2024.05.03"]
[EventType "swiss"]
[EventCountry "GER"]
[SourceTitle "playchess.com"]
[Source "ChessBase"]
[SourceQuality "1"]
[TimeControl "900+5"]

{[%evp 40,128,-362,-352,-355,-336,-346,-447,-439,-458,-444,-461,-429,-843,-459,-675,-691,-672,-662,-689,-653,-924,-896,-987,-941,-979,-981,-914,408,408,454,454,446,446,655,663,615,589,593,587,601,583,578,556,562,584,507,209,197,216,263,257,327,317,538,218,387,302,383,206,486,164,425,128,272,272,272,0,0,0,914,863,875,836,818,730,849,771,611,124,118,0,0,-50,272,-34,-34,-34,-34,-34,750]} 1. d4 {[%emt 0:00:01]} d5 {[%emt 0:00:02]} 2. c4 {[%emt 0:00:02]} e6 {[%emt 0:00:02]} 3. Nf3 {[%emt 0:00:02]} Nf6 {[%emt 0:00:01]} 4. g3 {[%emt 0:00:01]} dxc4 {[%emt 0:00:05]} 5. Bg2 {[%emt 0:00:01]} Bb4+ {[%emt 0:00:01]} 6. Bd2 {[%emt 0:00:05]} a5 {[%emt 0:00:07]} 7. a3 {[%emt 0:00:21] E04: Open Catalan: 5 Nf3.} Be7 {[%emt 0:00:15]} 8. Qa4+ {[%emt 0:00:36]} Bd7 {[%emt 0:00:08]} 9. Qxc4 {[%emt 0:00:02]} Bc6 {[%emt 0:00:08]} 10. O-O {[%emt 0:00:40]} O-O {[%emt 0:00:05]} 11. Rd1 $146 {[%emt 0:00:56]} ({Predecessor:} 11. Nc3 Nbd7 12. Qd3 a4 13. Rfd1 Qb8 14. e4 Rd8 15. Qe2 Nb6 16. Bf4 Ra5 17. Rac1 Nh5 18. Be3 Nf6 19. d5 exd5 20. Bxb6 cxb6 21. exd5 Nxd5 22. Nxd5 {1-0 Gelfand,B (2620)-Najer,E (2566) Wch Blitz Almaty 2022 (9)}) 11... Bd5 {[%emt 0:00:40]} 12. Qc2 {[%emt 0:00:12]} a4 {[%emt 0:00:31]} 13. Rc1 {[%emt 0:00:04]} Nc6 {[%emt 0:00:07]} 14. Nc3 {[%emt 0:00:11]} Bxf3 {[%emt 0:00:36]} 15. Bxf3 {[%emt 0:00:02]} Nxd4 {[%emt 0:00:04]} 16. Qd1 {[%emt 0:00:18]} Nb3 {[%emt 0:00:39]} 17. Bf4 {[%emt 0:00:59]} c6 {[%emt 0:00:53]} 18. Qc2 {[%emt 0:00:25]} Nd5 {[%emt 0:00:57]} 19. Nxa4 {[%emt 0:01:52]} Nxa1 {[%emt 0:00:22]} 20. Rxa1 {[%emt 0:00:02]} Nxf4 {[%emt 0:00:08]} 21. gxf4 {[%emt 0:00:15]} Qd4 {[%emt 0:00:42]} 22. Nc3 {[%emt 0:00:09]} Qxf4 {[%emt 0:00:24]} 23. Be4 {[%emt 0:00:23]} f5 {[%emt 0:00:52]} 24. e3 {[%emt 0:00:26]} Qe5 {[%emt 0:01:27]} 25. Bf3 {[%emt 0:01:11]} Rf6 {[%emt 0:01:03]} 26. Qb3 {[%emt 0:00:43]} (26. Kf1 $142) 26... Rb8 {[%emt 0:00:27]} 27. Rd1 {[%emt 0:00:20]} (27. Kf1 $142) 27... Rg6+ $19 {[%emt 0:00:19]} 28. Kf1 {[%emt 0:00:08]} Bh4 {[%emt 0:00:25]} 29. Ke2 {[%emt 0:00:27]} Bxf2 {[%emt 0:00:28]} 30. Na4 {[%emt 0:01:14]} b5 {[%emt 0:00:54]} 31. Qc3 {[%emt 0:00:36]} Qxh2 {[%emt 0:01:02]} 32. Rh1 {[%emt 0:01:16]} Qg3 {[%emt 0:00:05]} 33. Nc5 {[%emt 0:00:43]} f4 $4 {[%emt 0:01:35][%mdl 8192]} (33... e5 $19 {avoids the disaster.} 34. Rf1 Bg1) 34. Ne4 $18 {[%emt 0:00:32]} Qg1 {[%emt 0:01:03]} (34... b4 35. Qe5 (35. Qxc6 Qxf3+ 36. Kxf3 bxa3 $18) 35... Rd8 (35... Rb5 $2 36. Qc7 $18) 36. Nxg3 Bxg3 37. Qh5 $18 (37. exf4 Rf6 $18) (37. axb4 Rf8 $18)) 35. Rxg1 {[%emt 0:00:02]} (35. Nxf2 Qg5 $11) (35. Qxc6 Qxh1 36. Bxh1 fxe3 $18) 35... Bxg1 {[%emt 0:00:01]} 36. exf4 {[%emt 0:00:09]} (36. Qxc6 Bxe3 37. Qd7 Rf8) 36... Rf8 {[%emt 0:00:10]} (36... Bh2 $142 37. Qd2 (37. Qxc6 Bxf4 38. Kd3 Kh8 $18) 37... Rf8) 37. Qxc6 $18 {[%emt 0:00:17]} Rxf4 {[%emt 0:00:11]} 38. Qxb5 {[%emt 0:00:08]} Rf8 {[%emt 0:00:21]} 39. a4 {[%emt 0:00:20]} Rh6 {[%emt 0:00:07]} 40. Qd7 {[%emt 0:00:19]} Rh2+ {[%emt 0:00:08]} 41. Kf1 {[%emt 0:00:08]} Be3 {[%emt 0:00:10]} 42. Qxe6+ {[%emt 0:00:12]} Kh8 {[%emt 0:00:01]} 43. Qg4 {[%emt 0:00:35]} (43. Ke1 $142 Bf4 44. b4) 43... Rxb2 $18 {[%emt 0:00:10]} 44. Ke1 $1 {[%emt 0:00:13]} Ra2 {[%emt 0:00:15]} 45. Bd1 {[%emt 0:00:12]} Bb6 {[%emt 0:00:11] [#]} 46. Qh5 $1 {[%emt 0:00:15]} Ra3 $2 {[%emt 0:00:20]} (46... h6 47. Qd5 Rh2) 47. Qb5 {[%emt 0:00:12]} (47. Ng5 $142 {[%csl Gg5][%cal Rh5h7]} Re3+ 48. Kd2 Rf2+ 49. Kc1) 47... Rb8 $2 {[%emt 0:00:10]} (47... Re3+ 48. Kd2 Rd8+ 49. Kc2 Rc8+ 50. Kb1 Rb8) 48. Kf1 {[%emt 0:00:17]} Ra1 {[%emt 0:00:04]} 49. Nc3 {[%emt 0:00:09]} (49. Qd5 $142) 49... h6 $2 {[%emt 0:00:05]} (49... Rc1) 50. Qe5 $2 {[%emt 0:00:07]} (50. Kg2) 50... Rf8+ $2 {[%emt 0:00:03]} (50... Rd8 {was called for.}) 51. Kg2 $2 {[%emt 0:00:02]} (51. Ke2 $18 {is the precise move to win.}) 51... Rc1 {[%emt 0:00:08] [#]} (51... Rc8 $16 52. Qe6 Rxc3) 52. a5 $1 $18 {[%emt 0:00:17]} Ba7 {[%emt 0:00:01]} 53. a6 $2 {[%emt 0:00:02]} (53. Qe1 $18) 53... Rc8 $11 {[%emt 0:00:17]} 54. Bg4 {[%emt 0:00:07]} Rc2+ $2 {[%emt 0:00:00][%mdl 8192]} (54... Rg1+ $11 55. Kh3 Rh1+ 56. Kg2 Rg1+ 57. Kh3 Rh1+ 58. Kg2 Rg1+) 55. Ne2 $18 {[%emt 0:00:07]} Rf8 {[%emt 0:00:00]} 56. Qe7 {[%emt 0:00:05]} Bc5 {[%emt 0:00:15]} 57. Qb7 {[%emt 0:00:05]} Rf2+ {[%emt 0:00:00]} 58. Kg3 {[%emt 0:00:01]} Rf8 {[%emt 0:00:00]} 59. a7 $2 {[%emt 0:00:03]} (59. Bf3 $18) 59... Ra2 $16 {[%emt 0:00:01]} 60. Nf4 {[%emt 0:00:12]} (60. Kg2 $16 {Strongly threatening Qd5.} Rxa7 61. Qc6) 60... Bd6 $1 $11 {[%emt 0:00:05]} 61. Bf3 {[%emt 0:00:06]} (61. Be6 $11 Bxf4+ 62. Kg4) 61... Rxf4 $2 {[%emt 0:00:06][%mdl 8192]} (61... Bxf4+ $15 62. Kg4 Bd6) 62. a8=Q+ $2 (62. a8=B $2 {gets mated.} Rb4+ 63. Kh3 Rh2#) (62. Qb8+ $18 Kh7 63. Qxd6 (63. a8=R $2 {perishes.} Bxb8 64. Rxb8 Rc4 $19) (63. a8=Q Rxa8 64. Qxd6 Raf8 $14) 63... Rxf3+ 64. Kxf3 Rxa7 65. Ke4) 62... Rxa8 $15 {[%emt 0:00:02]} 63. Qxa8+ {[%emt 0:00:07]} Rf8+ {[%emt 0:00:01]} 64. Kg4 {[%emt 0:00:00]} Bb4 $2 {[%emt 0:00:25][%mdl 8192]} (64... Rxa8 $15 65. Bxa8 g6) 1/2-1/2

[Event "RLP-ch Rapid 2024"]
[Site "Landau"]
[Date "2024.05.04"]
[Round "4.5"]
[White "Meuer, David"]
[Black "Hinrichs, Paul"]
[Result "0-1"]
[ECO "C47"]
[WhiteElo "2067"]
[BlackElo "2255"]
[Annotator "TA"]
[PlyCount "72"]
[EventDate "2024.05.03"]
[EventType "swiss"]
[EventCountry "GER"]
[SourceTitle "playchess.com"]
[Source "ChessBase"]
[SourceQuality "1"]
[TimeControl "900+5"]

{[%evp 13,72,32,33,3,0,0,-1,0,-10,0,14,0,0,0,0,-45,-44,-62,-40,-50,-31,-39,-6,-19,-14,-70,-25,-43,-45,-66,-54,-55,-29,-43,-24,-21,-22,-24,-20,-22,0,-36,-36,-52,-43,-75,-75,-79,-79,-75,-75,-70,-72,-94,-80,-114,-104,-714,-713,-680,-677]} 1. e4 {[%emt 0:00:01]} e5 {[%emt 0:00:01]} 2. Nf3 {[%emt 0:00:02]} Nc6 {[%emt 0:00:02]} 3. d4 {[%emt 0:00:01]} exd4 {[%emt 0:00:02]} 4. Nxd4 {[%emt 0:00:02]} Nf6 {[%emt 0:00:02]} 5. Nc3 {[%emt 0:00:01]} Nxe4 {[%emt 0:00:02]} 6. Nxe4 {[%emt 0:02:19]} Qe7 {[%emt 0:00:02]} 7. f3 {[%emt 0:00:15]} d5 {[%emt 0:00:03]} 8. Nxc6 {[%emt 0:00:05]} (8. Bb5 $5 Bd7 9. Bxc6 bxc6 10. O-O (10. Bg5 f6 $11) 10... dxe4 11. Re1 $14) 8... bxc6 {[%emt 0:01:11]} 9. Qe2 $1 {[%emt 0:00:16]} dxe4 {[%emt 0:00:08]} 10. Qxe4 {[%emt 0:00:03] The position is equal.} Qxe4+ {[%emt 0:01:56]} 11. fxe4 {[%emt 0:00:02]} Be6 {[%emt 0:00:09]} 12. Bd3 {[%emt 0:00:22]} Bd6 {[%emt 0:00:03]} 13. Bd2 {[%emt 0:00:21]} Be5 {[%emt 0:00:04]} 14. c3 {[%emt 0:01:12]} Rb8 {[%emt 0:00:06]} 15. b3 {[%emt 0:00:14]} f6 {[%emt 0:00:24] Black is more active.} 16. O-O-O {[%emt 0:00:20]} Kf7 {[%emt 0:00:07]} 17. Kc2 {[%emt 0:00:03]} Rhd8 {[%emt 0:00:02]} 18. Be3 {[%emt 0:00:18]} a5 {[%emt 0:00:15][%cal Oa5a4]} 19. Be2 {[%emt 0:00:26]} (19. Bc4 $11) 19... Re8 {[%emt 0:00:07]} 20. Bd4 {[%emt 0:00:26]} Bd6 {[%emt 0:00:09][%cal Oa5a4]} 21. h3 {[%emt 0:00:43] [#]} a4 $1 {[%emt 0:00:19]} 22. c4 {[%emt 0:00:12]} axb3+ {[%emt 0:00:35]} 23. axb3 {[%emt 0:00:02]} Bf5 {[%emt 0:00:07]} 24. Bh5+ {[%emt 0:00:37]} Bg6 {[%emt 0:00:09]} 25. Bxg6+ {[%emt 0:00:13]} hxg6 {[%emt 0:00:01]} 26. Rhe1 {[%emt 0:00:26]} Re6 {[%emt 0:00:09]} 27. Rd3 {[%emt 0:00:32]} Rbe8 $36 {[%emt 0:00:05][%mdl 2048] Black has some pressure.} 28. Rde3 {[%emt 0:00:03][%cal Oe4e5]} g5 {[%emt 0:00:11]} 29. Bc3 {[%emt 0:00:32]} Bf4 {[%emt 0:00:07]} 30. R3e2 {[%emt 0:00:07]} Bg3 {[%emt 0:00:03]} 31. Rd1 {[%emt 0:00:32]} Rxe4 {[%emt 0:00:02]} 32. Rxe4 {[%emt 0:00:38]} Rxe4 {[%emt 0:00:01]} 33. Kd3 {[%emt 0:00:18]} Re7 {[%emt 0:00:03]} 34. Ra1 {[%emt 0:00:16]} Bf4 {[%emt 0:00:03]} 35. Bd4 {[%emt 0:00:15][%mdl 8192] [#] Prevents Re3+} (35. Re1 $17) 35... Rd7 $1 $19 {[%emt 0:00:03]} 36. Kc3 {[%emt 0:00:08] [#]} Rxd4 $1 {[%emt 0:00:03][%mdl 512] Weighted Error Value: White=0.41/Black=0.09 (flawless) .  Loses game:     	White=1     	---        Mistake:       	White=1     	---        Inaccurate:     	White=4     	Black=3      OK:         	White=5     	Black=10     Best:        	White=1     	Black=1      Strong:       	White=1     	Black=1} 0-1

[Event "RLP-ch Rapid 2024"]
[Site "Landau"]
[Date "2024.05.04"]
[Round "4.6"]
[White "Bender, Tim"]
[Black "Sidletskyi, Ivan"]
[Result "0-1"]
[ECO "E32"]
[WhiteElo "1850"]
[BlackElo "2346"]
[Annotator "RC"]
[PlyCount "48"]
[EventDate "2024.05.03"]
[EventType "swiss"]
[EventCountry "GER"]
[SourceTitle "playchess.com"]
[Source "ChessBase"]
[SourceQuality "1"]
[TimeControl "900+5"]

1. d4 {[%emt 0:00:03]} Nf6 {[%emt 0:00:02]} 2. c4 {[%emt 0:00:01]} e6 {[%emt 0:00:02]} 3. Nc3 {[%emt 0:00:02]} Bb4 {[%emt 0:00:01]} 4. Qc2 {[%emt 0:00:01]} d6 {[%emt 0:00:54]} 5. Bd2 {[%emt 0:00:40]} Nbd7 {[%emt 0:00:53]} 6. a3 {[%emt 0:00:12]} Bxc3 {[%emt 0:00:03]} 7. Bxc3 {[%emt 0:00:03]} O-O {[%emt 0:00:13]} 8. Nf3 {[%emt 0:00:03]} b6 {[%emt 0:00:18]} 9. g3 {[%emt 0:01:47]} Bb7 {[%emt 0:00:10]} 10. Bg2 {[%emt 0:00:01]} c5 {[%emt 0:00:23]} 11. O-O {[%emt 0:00:19]} Be4 {[%emt 0:00:26]} 12. Qc1 {[%emt 0:00:15]} Rc8 {[%emt 0:00:06]} 13. Nd2 {[%emt 0:00:17]} Bxg2 {[%emt 0:12:39]} 14. Kxg2 {[%emt 0:00:02]} d5 {[%emt 0:00:00]} 15. dxc5 {[%emt 0:02:09]} Nxc5 {[%emt 0:00:00]} 16. Qd1 {[%emt 0:02:27]} d4 {[%emt 0:00:00]} 17. Bb4 {[%emt 0:00:14]} e5 {[%emt 0:00:00]} 18. Bxc5 {[%emt 0:00:52]} bxc5 {[%emt 0:00:00]} 19. Qc2 {[%emt 0:00:03]} Qb6 {[%emt 0:00:00]} 20. b4 {[%emt 0:00:33]} cxb4 {[%emt 0:00:00]} 21. axb4 {[%emt 0:00:03]} Qb7+ {[%emt 0:00:00]} 22. f3 {[%emt 0:00:07]} Nd5 {[%emt 0:00:00]} 23. Qe4 {[%emt 0:01:00]} Ne3+ {[%emt 0:00:00]} 24. Kf2 {[%emt 0:00:15]} Qxb4 {[%emt 0:00:00]} 0-1

[Event "RLP-ch Rapid 2024"]
[Site "Landau"]
[Date "2024.05.04"]
[Round "4.7"]
[White "Commercon, Simon"]
[Black "Lutterbach, Jakob"]
[Result "1-0"]
[ECO "D02"]
[WhiteElo "2204"]
[BlackElo "1858"]
[Annotator "RC"]
[PlyCount "59"]
[EventDate "2024.05.03"]
[EventType "swiss"]
[EventCountry "GER"]
[SourceTitle "playchess.com"]
[Source "ChessBase"]
[SourceQuality "1"]
[TimeControl "900+5"]

1. d4 {[%emt 0:00:03]} Nf6 {[%emt 0:00:02]} 2. Nf3 {[%emt 0:00:04]} d5 {[%emt 0:00:03]} 3. g3 {[%emt 0:00:02]} Bf5 {[%emt 0:00:06]} 4. Bg2 {[%emt 0:00:02]} e6 {[%emt 0:00:03]} 5. O-O {[%emt 0:00:06]} c6 {[%emt 0:00:23]} 6. Nbd2 {[%emt 0:00:10]} h6 {[%emt 0:00:15]} 7. b3 {[%emt 0:00:19]} Be7 {[%emt 0:00:32]} 8. Bb2 {[%emt 0:00:07]} O-O {[%emt 0:00:16]} 9. c4 {[%emt 0:00:39]} a5 {[%emt 0:00:17]} 10. a3 {[%emt 0:00:28]} Ne4 {[%emt 0:00:55]} 11. Ne5 {[%emt 0:00:56]} Nxd2 {[%emt 0:00:57]} 12. Qxd2 {[%emt 0:00:03]} Nd7 {[%emt 0:01:25]} 13. Nd3 {[%emt 0:01:42]} a4 {[%emt 0:02:47]} 14. Qc3 {[%emt 0:03:25]} axb3 {[%emt 0:00:52]} 15. cxd5 {[%emt 0:01:29]} exd5 {[%emt 0:00:08]} 16. Qxb3 {[%emt 0:00:05]} Nb6 {[%emt 0:02:32]} 17. a4 {[%emt 0:01:44]} Nc4 {[%emt 0:00:11]} 18. Bc3 {[%emt 0:00:02]} Qc7 {[%emt 0:01:10]} 19. Rfb1 {[%emt 0:00:05]} Rfb8 {[%emt 0:00:06]} 20. Bb4 {[%emt 0:00:36]} Bxb4 {[%emt 0:00:20]} 21. Qxb4 {[%emt 0:00:05]} Bxd3 {[%emt 0:01:15]} 22. exd3 {[%emt 0:00:01]} Nd6 {[%emt 0:00:01]} 23. a5 {[%emt 0:01:08]} Ra6 {[%emt 0:00:11]} 24. Qc3 {[%emt 0:00:13]} Qd8 {[%emt 0:00:03]} 25. Rb2 {[%emt 0:00:29]} Rba8 {[%emt 0:00:01]} 26. Rba2 {[%emt 0:00:07]} Nb5 {[%emt 0:00:01]} 27. Qb4 {[%emt 0:00:11]} Qf6 {[%emt 0:00:03]} 28. Bxd5 {[%emt 0:00:22]} Qxd4 {[%emt 0:01:14]} 29. Bc4 {[%emt 0:00:20]} Nd6 {[%emt 0:00:22]} 30. Bxf7+ {[%emt 0:00:04]} 1-0

[Event "RLP-ch Rapid 2024"]
[Site "Landau"]
[Date "2024.05.04"]
[Round "4.8"]
[White "Yakovenko, Oleg"]
[Black "Perske, Paul"]
[Result "1-0"]
[ECO "B38"]
[WhiteElo "2281"]
[BlackElo "2120"]
[Annotator "RC"]
[PlyCount "71"]
[EventDate "2024.05.03"]
[EventType "swiss"]
[EventCountry "GER"]
[SourceTitle "playchess.com"]
[Source "ChessBase"]
[SourceQuality "1"]
[TimeControl "900+5"]

1. Nf3 {[%emt 0:00:00]} Nf6 {[%emt 0:00:01]} 2. c4 {[%emt 0:00:01]} g6 {[%emt 0:00:05]} 3. Nc3 {[%emt 0:00:01]} c5 {[%emt 0:00:02]} 4. e4 {[%emt 0:00:17]} Bg7 {[%emt 0:00:11]} 5. d4 {[%emt 0:00:13]} cxd4 {[%emt 0:00:17]} 6. Nxd4 {[%emt 0:00:02]} Nc6 {[%emt 0:00:17]} 7. Be3 {[%emt 0:00:05]} O-O {[%emt 0:00:07]} 8. Be2 {[%emt 0:00:02]} d6 {[%emt 0:00:09]} 9. O-O {[%emt 0:00:02]} Bd7 {[%emt 0:00:16]} 10. Qd2 {[%emt 0:00:02]} Nxd4 {[%emt 0:00:14]} 11. Bxd4 {[%emt 0:00:01]} Bc6 {[%emt 0:00:07]} 12. f3 {[%emt 0:00:02]} a5 {[%emt 0:00:05]} 13. b3 {[%emt 0:00:02]} Nd7 {[%emt 0:00:01]} 14. Be3 {[%emt 0:00:01]} Nc5 {[%emt 0:00:10]} 15. Rab1 {[%emt 0:00:07]} Qd7 {[%emt 0:00:27]} 16. Rfc1 {[%emt 0:01:28]} Rfd8 {[%emt 0:00:14]} 17. Bf1 {[%emt 0:00:12]} f5 {[%emt 0:00:43]} 18. exf5 {[%emt 0:00:09]} Qxf5 {[%emt 0:00:05]} 19. Re1 {[%emt 0:00:47]} b6 {[%emt 0:01:07]} 20. Rbd1 {[%emt 0:00:11]} e6 {[%emt 0:00:34]} 21. Bd4 {[%emt 0:00:59]} Bxd4+ {[%emt 0:00:24]} 22. Qxd4 {[%emt 0:00:03]} e5 {[%emt 0:00:07]} 23. Qe3 {[%emt 0:01:12]} Rab8 {[%emt 0:00:52]} 24. Bd3 {[%emt 0:00:20]} Nxd3 {[%emt 0:00:21]} 25. Rxd3 {[%emt 0:00:39]} b5 {[%emt 0:00:26]} 26. cxb5 {[%emt 0:00:38]} Bxb5 {[%emt 0:00:02]} 27. Rd5 {[%emt 0:00:58]} Qd7 {[%emt 0:01:03]} 28. Ne4 {[%emt 0:00:39]} Qc6 {[%emt 0:01:19]} 29. Red1 {[%emt 0:00:44]} Qc2 {[%emt 0:02:10]} 30. Rc1 {[%emt 0:01:50]} Qxa2 {[%emt 0:01:20]} 31. Rc7 {[%emt 0:00:25]} Rf8 {[%emt 0:01:07]} 32. Rxd6 {[%emt 0:01:39]} Qe2 {[%emt 0:02:18]} 33. Qxe2 {[%emt 0:00:14]} Bxe2 {[%emt 0:00:02]} 34. Nf6+ {[%emt 0:00:08]} Rxf6 {[%emt 0:00:01]} 35. Rxf6 {[%emt 0:00:02]} Rxb3 {[%emt 0:00:03]} 36. Re6 {[%emt 0:00:13]} 1-0

[Event "RLP-ch Rapid 2024"]
[Site "Landau"]
[Date "2024.05.04"]
[Round "4.9"]
[White "Mader, Lena"]
[Black "Graf, Ann-Jennifer"]
[Result "0-1"]
[ECO "A17"]
[WhiteElo "1902"]
[BlackElo "1827"]
[Annotator "NA RC"]
[PlyCount "114"]
[EventDate "2024.05.03"]
[EventType "swiss"]
[EventCountry "GER"]
[SourceTitle "playchess.com"]
[Source "ChessBase"]
[SourceQuality "1"]
[TimeControl "900+5"]

1. c4 {[%emt 0:00:00]} b6 {[%emt 0:00:02]} 2. Nc3 {[%emt 0:00:06]} e6 {[%emt 0:00:03]} 3. Nf3 {[%emt 0:00:14]} Nf6 {[%emt 0:15:15]} 4. g3 {[%emt 0:00:22]} Bb7 {[%emt 0:00:00]} 5. Bg2 {[%emt 0:00:01]} d5 {[%emt 0:00:00]} 6. cxd5 {[%emt 0:00:13]} exd5 {[%emt 0:00:00]} 7. d4 {[%emt 0:00:21]} Bb4 {[%emt 0:00:00]} 8. O-O {[%emt 0:00:20]} Bxc3 {[%emt 0:00:00]} 9. bxc3 {[%emt 0:00:01]} O-O {[%emt 0:00:00]} 10. Bg5 {[%emt 0:00:32]} h6 {[%emt 0:00:00]} 11. Bxf6 {[%emt 0:00:15]} Qxf6 {[%emt 0:00:00]} 12. e3 {[%emt 0:00:02]} Nd7 {[%emt 0:00:00]} 13. Qb3 {[%emt 0:01:21]} c5 {[%emt 0:00:00]} 14. a4 {[%emt 0:00:34]} Qd6 {[%emt 0:00:00]} 15. Rfc1 {[%emt 0:01:30]} f5 {[%emt 0:00:00]} 16. c4 {[%emt 0:01:36]} Nf6 {[%emt 0:01:05]} 17. dxc5 {[%emt 0:01:24]} Qxc5 {[%emt 0:00:00]} 18. cxd5 {[%emt 0:00:31]} Qxd5 {[%emt 0:00:00]} 19. Qb1 {[%emt 0:02:01]} Ne4 {[%emt 0:00:00]} 20. Qb2 {[%emt 0:00:52]} Ng5 {[%emt 0:00:00]} 21. Nh4 {[%emt 0:00:25]} Ne4 {[%emt 0:00:00]} 22. Rd1 {[%emt 0:00:34]} Qe6 {[%emt 0:00:00]} 23. Nf3 {[%emt 0:00:33]} Rac8 {[%emt 0:00:00]} 24. Rac1 {[%emt 0:00:04]} Rxc1 {[%emt 0:00:00]} 25. Rxc1 {[%emt 0:00:05]} Nc5 {[%emt 0:00:00]} 26. Nd4 {[%emt 0:01:05]} Qd7 {[%emt 0:00:00]} 27. Bxb7 {[%emt 0:00:15]} Nxb7 {[%emt 0:00:00]} 28. Qb3+ {[%emt 0:00:10]} Kh7 {[%emt 0:00:00]} 29. Qb1 {[%emt 0:00:24]} Nc5 {[%emt 0:00:00]} 30. a5 {[%emt 0:00:08]} Na4 {[%emt 0:00:00]} 31. axb6 {[%emt 0:00:17]} Nxb6 {[%emt 0:01:15]} 32. Rd1 {[%emt 0:00:47]} Qf7 {[%emt 0:00:00]} 33. Qa1 {[%emt 0:00:13]} Rd8 {[%emt 0:00:00]} 34. Qb1 {[%emt 0:00:20]} g6 {[%emt 0:00:00]} 35. Qa1 {[%emt 0:00:07]} Nc4 {[%emt 0:00:00]} 36. Qa6 {[%emt 0:00:11]} Rd6 {[%emt 0:00:00]} 37. Qc8 {[%emt 0:00:05]} Ne5 {[%emt 0:00:00]} 38. Qc1 {[%emt 0:00:04]} Qd7 {[%emt 0:00:00]} 39. h3 {[%emt 0:00:05]} Nf3+ {[%emt 0:00:00]} 40. Kg2 {[%emt 0:00:02]} Nxd4 {[%emt 0:00:00]} 41. Rxd4 {[%emt 0:00:02]} Rxd4 {[%emt 0:00:00]} 42. exd4 {[%emt 0:00:01]} Qxd4 {[%emt 0:00:00]} 43. Qc7+ {[%emt 0:00:01]} Qg7 {[%emt 0:00:00]} 44. Qa5 {[%emt 0:00:02]} Qb7+ {[%emt 0:00:00]} 45. Kf1 {[%emt 0:00:02]} a6 {[%emt 0:00:00]} 46. h4 {[%emt 0:00:04]} Qb5+ {[%emt 0:00:00]} 47. Qxb5 {[%emt 0:00:03]} axb5 {[%emt 0:00:00]} 48. Ke2 {[%emt 0:00:00]} Kg7 {[%emt 0:00:00]} 49. Kd3 {[%emt 0:00:01]} Kf6 {[%emt 0:00:00]} 50. Kc3 {[%emt 0:00:00]} Ke5 {[%emt 0:00:00]} 51. Kb4 {[%emt 0:00:00]} Ke4 {[%emt 0:00:00]} 52. Kxb5 {[%emt 0:00:01]} Kf3 {[%emt 0:00:00]} 53. Kc4 {[%emt 0:00:05]} Kxf2 {[%emt 0:00:00]} 54. Kd3 {[%emt 0:00:05]} Kxg3 {[%emt 0:00:01]} 55. Ke3 {[%emt 0:00:05]} f4+ {[%emt 0:00:05]} 56. Ke2 {[%emt 0:00:05]} Kg2 {[%emt 0:00:05]} 57. Ke1 {[%emt 0:00:05]} f3 {[%emt 0:00:05]} 0-1

[Event "RLP-ch Rapid 2024"]
[Site "Landau"]
[Date "2024.05.04"]
[Round "5.1"]
[White "Frischmann, Rick"]
[Black "Carow, Johannes"]
[Result "0-1"]
[ECO "B12"]
[WhiteElo "2355"]
[BlackElo "2456"]
[Annotator "TA"]
[PlyCount "38"]
[EventDate "2024.05.03"]
[EventType "swiss"]
[EventCountry "GER"]
[SourceTitle "playchess.com"]
[Source "ChessBase"]
[SourceQuality "1"]
[TimeControl "900+5"]

{[%evp 9,38,20,55,48,50,27,60,37,106,94,120,119,132,141,117,120,138,141,173,77,76,104,104,45,55,-778,-779,-1546,-700,-1537,-1525]} 1. e4 {[%emt 0:00:03]} c6 {[%emt 0:00:02]} 2. d4 {[%emt 0:00:02]} d5 {[%emt 0:00:01]} 3. f3 {[%emt 0:00:01]} e6 {[%emt 0:00:07]} 4. Nc3 {[%emt 0:00:02]} Ne7 {[%emt 0:00:19]} 5. Be3 {[%emt 0:00:09]} b6 {[%emt 0:00:19][%cal Bb7b6,Bb6b5,Bb5b4][%mdl 32]} 6. Qd2 {[%emt 0:00:12]} Ba6 {[%emt 0:01:10]} 7. Nge2 {[%emt 0:00:02]} Nd7 {[%emt 0:00:19][%cal Bb8d7,Bd7f6,Bf6g4][%mdl 32]} 8. h4 {[%emt 0:01:03] White is slightly better.} dxe4 {[%emt 0:01:02]} ({Black should try} 8... Nc8 $14) 9. fxe4 $16 {[%emt 0:00:17][%cal Bf3e4,Be4e5][%mdl 32]} Nf6 {[%emt 0:02:43]} 10. O-O-O {[%emt 0:00:59]} b5 {[%emt 0:01:12]} 11. Ng3 {[%emt 0:05:05]} Qa5 {[%emt 0:00:59]} 12. Kb1 {[%emt 0:00:22][%cal Oc3b5] Nxb5! would now be deadly.} Rd8 {[%emt 0:05:29]} 13. e5 {[%emt 0:02:41]} Ng4 {[%emt 0:00:53]} 14. Bf4 {[%emt 0:02:12]} (14. Bg5 $18 {and White stays clearly on top. And now Qf4 would win.} Nxe5 15. Nxb5) 14... b4 {[%emt 0:00:20]} 15. Nce4 {[%emt 0:00:10] Black must now prevent Nd6+.} Nd5 {[%emt 0:00:04]} 16. Bg5 {[%emt 0:00:13]} ({Better is} 16. h5 $16) 16... Rb8 {[%emt 0:00:11][%cal Od5c3]} 17. Be2 $2 {[%emt 0:00:28][%mdl 8192] [#]} (17. Qe1 $14) 17... Nc3+ $1 $19 {[%emt 0:00:29][%mdl 512] Black is clearly winning.} 18. Kc1 {[%emt 0:00:56]} (18. Qxc3 bxc3) 18... Nxa2+ {[%emt 0:00:03]} ({Less strong is} 18... Nxd1 19. Qxd1 (19. Bxg4 Nxb2 20. Kxb2 Qa3+ 21. Ka1 Bc4 $19) 19... b3 20. axb3 Qa1+ 21. Kd2 Bb4+ (21... Qxb2 22. Bxa6 Qxd4+ 23. Ke2 $11) 22. c3 Qxb2+ 23. Qc2 Qxc2+ 24. Kxc2 Bxe2 25. cxb4 $15) 19. Kb1 {[%emt 0:00:01] [#]} Nc3+ $1 {[%emt 0:00:07][%mdl 512] Weighted Error Value: White=1.15/Black=0.10 (very precise) .  Loses game:     	White=1     	---        Mistake:       	White=2     	Black=1      Inaccurate:     	White=1     	Black=1      OK:         	White=4     	Black=4      Best:        	---       	Black=1      Brilliant:      	---       	Black=1} 0-1